bitfinex-derivatives/quotes_BNBF0:USTF0_20251002
["timestamp","ask_amount","ask_price","bid_price","bid_amount"]
[1759425493061,0.83502189,1060.9,1060.2,1.7103594]
[1759425493263,0.83502189,1061.0,1060.2,1.7103594]
[1759425493966,0.83502189,1060.9,1060.2,1.7103594]
[1759425496066,0.83502189,1060.7,1060.2,1.7063594]
[1759425496364,0.83502189,1060.4,1060.2,1.7063594]
[1759425497164,0.83502189,1060.5,1060.2,1.7063594]
[1759425497362,0.83502189,1060.4,1060.2,1.7063594]
[1759425498063,0.83502189,1060.5,1060.2,1.7063594]
[1759425500170,0.83502189,1060.6,1060.2,1.7063594]
[1759425503066,0.83502189,1060.8,1060.2,1.7063594]
[1759425503469,0.83502189,1060.7,1060.2,1.7063594]
[1759425504772,0.83502189,1060.8,1060.2,1.7063594]
[1759425506274,0.83502189,1060.7,1060.2,1.7063594]
[1759425506475,0.83502189,1060.6,1060.2,1.7063594]
[1759425509881,0.83502189,1060.7,1059.3,0.16415675]
[1759425511178,0.83502189,1060.7,1059.4,1.74010164]
[1759425511477,0.83502189,1060.7,1059.4,1.74410164]
[1759425513379,0.83502189,1060.6,1059.4,1.74410164]
[1759425517781,0.83502189,1060.7,1059.4,1.74410164]
[1759425520185,0.83502189,1060.6,1059.4,1.74410164]
[1759425520480,0.83502189,1060.7,1059.4,1.74410164]
[1759425521580,0.83502189,1060.6,1059.4,1.74410164]
[1759425523382,0.83502189,1060.7,1059.4,1.74410164]
[1759425524082,0.83502189,1060.6,1059.4,1.74410164]
[1759425525483,0.83502189,1060.5,1059.4,1.74410164]
[1759425528785,0.83502189,1060.4,1059.4,1.74410164]
[1759425533386,0.83502189,1060.5,1059.4,1.74410164]
[1759425539993,0.83502189,1060.4,1059.4,1.74410164]
[1759425540397,0.83502189,1060.5,1059.4,1.74410164]
[1759425540693,0.83502189,1060.4,1059.4,1.74410164]
[1759425542193,0.83502189,1060.6,1059.4,1.74410164]
[1759425543093,0.83502189,1060.5,1059.4,1.74410164]
[1759425543498,0.83502189,1060.4,1059.4,1.74410164]
[1759425543792,0.83502189,1060.8,1059.4,1.74410164]
[1759425544394,0.83502189,1060.5,1059.4,1.74410164]
[1759425544696,0.83502189,1060.6,1059.4,1.74410164]
[1759425545298,0.83502189,1060.5,1059.4,1.74410164]
[1759425546397,0.83502189,1060.4,1059.4,1.74410164]
[1759425546995,0.83502189,1060.5,1059.4,1.74410164]
[1759425547297,0.83502189,1060.4,1059.4,1.74410164]
[1759425547494,0.83502189,1060.5,1059.4,1.74410164]
[1759425547695,0.83502189,1060.4,1059.4,1.74410164]
[1759425548198,0.83502189,1060.3,1059.4,1.74410164]
[1759425549100,0.83502189,1060.2,1059.4,1.74410164]
[1759425551096,1.26399299,1060.4,1059.4,1.74410164]
[1759425551097,0.83502189,1060.3,1059.4,1.74410164]
[1759425551301,0.83502189,1060.2,1059.4,1.74410164]
[1759425551601,0.83502189,1060.3,1059.4,1.74410164]
[1759425552402,0.83502189,1060.2,1059.4,1.74410164]
[1759425553202,0.83502189,1060.1,1059.4,1.74410164]
[1759425554100,0.83502189,1060.2,1059.4,1.74410164]
[1759425558505,0.83502189,1060.1,1059.4,1.74410164]
[1759425561902,0.83502189,1060.0,1059.4,1.74410164]
[1759425563406,0.83502189,1059.9,1059.4,1.74410164]
[1759425564108,0.83502189,1060.1,1059.4,1.74410164]
[1759425564408,0.83502189,1060.0,1059.4,1.74410164]
[1759425565105,0.83502189,1059.9,1059.4,1.74410164]
[1759425565505,0.83502189,1059.8,1059.4,1.74410164]
[1759425567207,0.83502189,1059.9,1059.4,1.74410164]
[1759425567507,0.83502189,1060.0,1059.4,1.74410164]
[1759425568309,0.83502189,1060.1,1059.4,1.74410164]
[1759425569308,0.83502189,1060.2,1059.4,1.74410164]
[1759425571615,0.83502189,1060.3,1059.4,1.74410164]
[1759425574419,0.83502189,1060.4,1059.4,1.74410164]
[1759425576321,0.83502189,1060.3,1059.4,1.74410164]
[1759425576821,0.83502189,1060.4,1059.4,1.74410164]
[1759425577018,0.83502189,1060.3,1059.4,1.74410164]
[1759425578121,0.83502189,1060.2,1059.4,1.74410164]
[1759425580723,0.83502189,1059.9,1059.4,1.74410164]
[1759425581423,0.83502189,1060.0,1059.4,1.74410164]
[1759425586036,0.83502189,1060.1,1059.4,1.74410164]
[1759425586937,0.83502189,1060.2,1059.4,1.74410164]
[1759425589035,0.83502189,1060.3,1059.4,1.74410164]
[1759425589535,0.83502189,1060.2,1059.4,1.74410164]
[1759425589741,0.83502189,1060.4,1059.4,1.74410164]
[1759425590437,0.83502189,1060.3,1059.4,1.74410164]
[1759425593846,0.83502189,1060.4,1059.4,1.74410164]
[1759425595347,0.83502189,1060.3,1059.4,1.74410164]
[1759425595544,0.83502189,1060.4,1059.4,1.74410164]
[1759425596250,0.83502189,1060.5,1059.4,1.74410164]
[1759425597648,0.83502189,1060.4,1059.4,1.74410164]
[1759425599246,0.83502189,1060.5,1059.4,1.74410164]
[1759425600253,0.83502189,1060.4,1059.4,1.74410164]
[1759425602353,0.83502189,1060.3,1059.4,1.74410164]
[1759425605659,0.83502189,1060.4,1059.4,1.74410164]
[1759425607765,0.83502189,1060.3,1059.4,1.74410164]
[1759425609164,0.83502189,1060.2,1059.4,1.74410164]
[1759425611466,0.83502189,1060.1,1059.4,1.74410164]
[1759425611864,0.83502189,1060.0,1059.4,1.74410164]
[1759425613568,0.83502189,1059.9,1059.4,1.74410164]
[1759425614369,0.83502189,1059.8,1059.4,1.74410164]
[1759425616065,0.83502189,1059.7,1059.4,1.74410164]
[1759425616267,0.83502189,1059.6,1059.4,1.74410164]
[1759425617170,0.83502189,1059.7,1059.4,1.74410164]
[1759425617666,0.83502189,1059.8,1059.4,1.74410164]
[1759425618370,0.83502189,1059.9,1059.4,1.74410164]
[1759425620070,0.83502189,1060.0,1059.4,1.74410164]
[1759425620271,0.83502189,1060.1,1059.4,1.74410164]
[1759425620569,0.83502189,1059.9,1059.4,1.74410164]
[1759425625074,0.83502189,1059.8,1059.4,1.74410164]
[1759425626472,0.83502189,1059.9,1059.4,1.74410164]
[1759425627978,0.83502189,1060.0,1059.4,1.74410164]
[1759425628277,0.83502189,1059.9,1059.4,1.74410164]
[1759425631484,0.83502189,1059.8,1059.4,1.74410164]
[1759425633484,0.83502189,1059.8,1059.5,1.71230678]
[1759425633783,0.83502189,1059.8,1059.5,1.71630678]
[1759425635390,0.83502189,1059.8,1058.5,0.16426291]
[1759425635585,0.83502189,1059.6,1058.5,0.16426291]
[1759425635990,0.83502189,1059.5,1058.5,0.16426291]
[1759425636185,0.83502189,1059.5,1058.6,1.70694861]
[1759425636389,0.83502189,1059.3,1058.6,1.71094861]
[1759425637289,0.83502189,1059.5,1058.6,1.71094861]
[1759425637789,0.83502189,1059.6,1058.6,1.71094861]
[1759425638393,0.83502189,1059.7,1058.6,1.71094861]
[1759425642993,0.83502189,1059.8,1058.6,1.71094861]
[1759425643390,0.83502189,1059.9,1058.6,1.71094861]
[1759425648402,0.83502189,1059.8,1058.6,1.71094861]
[1759425651303,0.83502189,1059.9,1058.6,1.71094861]
[1759425651506,0.83502189,1060.1,1058.6,1.71094861]
[1759425651804,0.83502189,1060.3,1058.6,1.71094861]
[1759425653401,0.83502189,1060.2,1058.6,1.71094861]
[1759425653608,0.83502189,1060.1,1058.6,1.71094861]
[1759425654208,0.83502189,1060.0,1058.6,1.71094861]
[1759425654405,0.83502189,1059.9,1058.6,1.71094861]
[1759425654701,0.83502189,1060.0,1058.6,1.71094861]
[1759425655005,0.83502189,1059.9,1058.6,1.71094861]
[1759425655402,0.83502189,1060.2,1058.6,1.71094861]
[1759425657305,1.26399299,1060.4,1058.6,1.71094861]
[1759425657306,0.83502189,1060.4,1058.6,1.71094861]
[1759425658308,0.83502189,1060.5,1058.6,1.71094861]
[1759425658508,0.83502189,1060.4,1058.6,1.71094861]
[1759425659104,0.83502189,1060.5,1058.6,1.71094861]
[1759425659310,0.83502189,1060.4,1058.6,1.71094861]
[1759425660607,0.83502189,1060.3,1058.6,1.71094861]
[1759425660908,0.83502189,1060.1,1058.6,1.71094861]
[1759425661308,0.83502189,1060.0,1058.6,1.71094861]
[1759425663112,0.83502189,1060.2,1058.6,1.71094861]
[1759425663313,0.83502189,1060.1,1058.6,1.71094861]
[1759425663608,0.83502189,1060.2,1058.6,2.34274935]
[1759425664713,0.83502189,1060.3,1058.6,2.34274935]
[1759425665008,0.83502189,1060.2,1058.7,0.63180074]
[1759425665908,0.83502189,1060.3,1058.7,0.63180074]
[1759425666112,0.83502189,1060.2,1058.7,0.63180074]
[1759425667114,0.83502189,1060.1,1058.7,0.63180074]
[1759425667311,0.83502189,1060.1,1058.6,1.71094861]
[1759425667312,0.83502189,1060.1,1058.6,2.34274935]
[1759425668515,0.83502189,1060.1,1058.7,0.63180074]
[1759425668716,0.83502189,1060.1,1058.6,2.34274935]
[1759425670718,0.83502189,1060.1,1058.7,0.63180074]
[1759425670915,0.83502189,1060.2,1058.8,0.63180074]
[1759425673718,0.83502189,1060.3,1058.8,0.63180074]
[1759425673919,0.83502189,1060.7,1058.9,0.63180074]
[1759425674118,0.83502189,1060.8,1058.9,0.63180074]
[1759425674319,0.83502189,1060.7,1058.9,0.63180074]
[1759425674520,0.83502189,1060.6,1058.7,0.63180074]
[1759425674816,0.83502189,1060.4,1058.8,0.63180074]
[1759425676215,0.83502189,1060.5,1058.8,0.63180074]
[1759425676515,0.83502189,1060.5,1058.7,0.63180074]
[1759425678419,0.83502189,1060.5,1058.6,2.34274935]
[1759425678622,0.83502189,1060.5,1058.7,0.63180074]
[1759425678922,0.83502189,1060.5,1058.6,1.71094861]
[1759425679122,0.83502189,1060.4,1058.7,0.6316506]
[1759425679318,0.83502189,1060.5,1058.6,1.71094861]
[1759425680425,0.83502189,1060.6,1058.6,1.71094861]
[1759425683920,0.83502189,1060.5,1058.6,1.71094861]
[1759425685021,0.83502189,1060.4,1058.6,1.71094861]
[1759425685525,0.83502189,1060.2,1058.6,1.71094861]
[1759425685720,0.83502189,1060.1,1058.6,1.71094861]
[1759425687626,0.99927472,1060.0,1058.6,1.71094861]
[1759425688232,0.16425283,1060.0,1058.6,1.71094861]
[1759425691235,0.99927472,1060.0,1058.6,1.71094861]
[1759425694543,0.83502189,1059.8,1058.6,1.71094861]
[1759425696445,0.83502189,1059.7,1058.6,1.71094861]
[1759425699950,0.16425283,1060.0,1058.6,1.71094861]
[1759425702444,0.99927472,1060.0,1058.6,1.71094861]
[1759425702647,0.83502189,1059.9,1058.6,1.71094861]
[1759425703245,0.83502189,1059.8,1058.6,1.71094861]
[1759425706854,0.16425283,1060.0,1058.6,1.71094861]
[1759425707054,0.99927472,1060.0,1058.6,1.71094861]
[1759425709251,0.99927472,1060.0,1058.3,0.16435833]
[1759425711058,0.83502189,1059.6,1058.3,0.16435833]
[1759425714854,0.83502189,1059.7,1058.3,0.16435833]
[1759425717358,0.83502189,1059.8,1058.3,0.16435833]
[1759425718758,0.83502189,1059.9,1058.3,0.16435833]
[1759425725966,0.99927472,1060.0,1058.3,0.16435833]
[1759425729069,0.16425283,1060.0,1058.3,0.16435833]
[1759425729768,0.99927472,1060.0,1058.3,0.16435833]
[1759425729969,0.16425283,1060.0,1058.3,0.16435833]
[1759425730868,0.99927472,1060.0,1058.3,0.16435833]
[1759425733968,0.83502189,1059.9,1058.3,0.16435833]
[1759425734372,0.83502189,1059.8,1058.3,0.16435833]
[1759425734674,0.83502189,1059.7,1058.3,0.16435833]
[1759425734970,0.83502189,1059.6,1058.3,0.16435833]
[1759425738372,0.83502189,1059.7,1058.3,0.16435833]
[1759425739876,0.83502189,1059.8,1058.3,0.16435833]
[1759425740379,0.83502189,1059.7,1058.3,0.16435833]
[1759425741277,0.83502189,1059.6,1058.3,0.16435833]
[1759425742977,0.83502189,1059.7,1058.3,0.16435833]
[1759425743479,0.83502189,1059.6,1058.3,0.16435833]
[1759425748779,0.83502189,1059.8,1058.3,0.16435833]
[1759425749282,0.83502189,1059.7,1058.3,0.16435833]
[1759425749678,0.83502189,1059.8,1058.3,0.16435833]
[1759425752682,0.83502189,1059.7,1058.3,0.16435833]
[1759425755687,0.83502189,1059.9,1058.3,0.16435833]
[1759425755882,0.83502189,1059.9,1058.4,0.6316506]
[1759425759292,0.99927472,1060.0,1058.4,0.6316506]
[1759425759692,0.83502189,1059.9,1058.4,0.6316506]
[1759425759989,0.83502189,1059.9,1058.3,0.79600893]
[1759425760193,0.99927472,1060.0,1058.3,0.79600893]
[1759425760387,0.83502189,1059.9,1058.3,0.79600893]
[1759425760789,0.99927472,1060.0,1058.3,0.79600893]
[1759425761392,0.83502189,1059.9,1058.3,0.79600893]
[1759425761593,0.99927472,1060.0,1058.3,0.79600893]
[1759425762593,0.99927472,1060.0,1058.4,0.6316506]
[1759425762796,0.83502189,1059.9,1058.4,0.6316506]
[1759425764094,0.83502189,1059.8,1058.4,0.6316506]
[1759425764295,0.83502189,1059.9,1058.4,0.6316506]
[1759425764495,0.83502189,1059.9,1058.5,0.6316506]
[1759425765098,0.83502189,1059.8,1058.5,0.6316506]
[1759425765799,0.83502189,1059.8,1058.6,0.6316506]
[1759425766001,0.83502189,1059.9,1058.6,0.6316506]
[1759425766396,0.83502189,1060.0,1058.7,0.6316506]
[1759425768704,0.83502189,1060.1,1058.7,0.6316506]
[1759425770205,0.83502189,1060.1,1058.6,0.6316506]
[1759425773309,0.99927084,1060.2,1058.6,0.6316506]
[1759425774705,0.83502189,1060.1,1058.6,1.82970155]
[1759425777207,0.16424895,1060.2,1058.6,1.82970155]
[1759425777208,0.83502189,1060.0,1058.6,1.82970155]
[1759425778613,0.83502189,1060.1,1058.6,1.82970155]
[1759425778813,0.83502189,1060.0,1058.6,1.82970155]
[1759425779313,0.83502189,1060.1,1058.6,1.82970155]
[1759425781013,0.83502189,1060.0,1058.6,1.82970155]
[1759425781910,0.83502189,1060.1,1058.6,1.82970155]
[1759425785617,0.83502189,1060.0,1058.6,1.82970155]
[1759425791416,0.83502189,1060.1,1058.6,1.82970155]
[1759425791716,0.83502189,1059.8,1058.6,1.82970155]
[1759425792917,0.83502189,1059.7,1058.6,1.82970155]
[1759425793219,0.83502189,1059.6,1058.6,1.82970155]
[1759425793416,0.83502189,1059.5,1058.6,1.82970155]
[1759425796521,0.83502189,1059.6,1058.6,1.82970155]
[1759425805330,0.83502189,1059.8,1058.6,1.82970155]
[1759425805536,0.83502189,1060.1,1058.6,1.82970155]
[1759425805833,0.99927084,1060.2,1058.6,1.82970155]
[1759425809837,0.83502189,1060.1,1058.6,1.82970155]
[1759425811234,0.83502189,1060.0,1058.6,1.82970155]
[1759425815538,0.99927084,1060.2,1058.6,1.82970155]
[1759425818654,0.16424895,1060.2,1058.6,1.82970155]
[1759425818843,0.99927084,1060.2,1058.6,1.82970155]
[1759425820942,0.16424895,1060.2,1058.6,1.82970155]
[1759425821542,0.99927084,1060.2,1058.6,1.82970155]
[1759425822138,0.16424895,1060.2,1058.6,1.82970155]
[1759425825344,0.83502189,1060.4,1058.9,0.6325885]
[1759425826340,0.83502189,1060.4,1058.8,0.6325885]
[1759425828446,0.83502189,1060.5,1058.9,0.6325885]
[1759425829146,0.99921117,1060.6,1058.9,0.6325885]
[1759425829346,0.83502189,1060.6,1058.9,0.6325885]
[1759425830747,0.83502189,1060.6,1059.0,0.6325885]
[1759425830942,0.83502189,1060.7,1059.0,0.6325885]
[1759425833446,0.99918716,1060.8,1058.9,0.6325885]
[1759425834850,0.16416527,1060.8,1058.9,0.6325885]
[1759425835547,0.16416527,1060.8,1058.8,0.6325885]
[1759425847159,0.16416527,1060.8,1058.9,0.6325885]
[1759425847357,0.16416527,1060.8,1058.8,0.6325885]
[1759425847558,0.16416527,1060.8,1058.9,0.6325885]
[1759425848559,0.16416527,1060.8,1058.8,0.6325885]
[1759425854968,0.16416527,1060.8,1058.7,0.6325885]
[1759425855970,0.16416527,1060.8,1058.8,0.6325885]
[1759425856270,0.16416527,1060.8,1058.7,0.6325885]
[1759425858670,0.99918716,1060.8,1058.7,0.6325885]
[1759425860775,0.99918716,1060.8,1058.8,0.6325885]
[1759425862576,0.83502189,1060.7,1058.8,0.6325885]
[1759425862974,0.99918716,1060.8,1058.9,0.6325885]
[1759425863476,0.99918716,1060.8,1059.0,0.6325885]
[1759425865376,0.99918716,1060.8,1059.1,0.6325885]
[1759425865576,0.99918716,1060.8,1059.0,0.6325885]
[1759425866377,0.99918716,1060.8,1059.1,0.6325885]
[1759425866673,0.99918716,1060.8,1059.0,0.6325885]
[1759425866878,0.83502189,1060.7,1059.0,0.6325885]
[1759425867779,0.83502189,1060.7,1058.8,0.84357369]
[1759425867780,0.83502189,1060.7,1058.9,0.6325885]
[1759425868178,0.83502189,1060.7,1059.0,0.6325885]
[1759425868676,0.83502189,1060.6,1058.9,0.6325885]
[1759425869674,0.83502189,1060.5,1058.9,0.6325885]
[1759425869879,0.83502189,1060.6,1058.9,0.6325885]
[1759425873180,0.99918716,1060.8,1058.8,0.6325885]
[1759425874178,0.99918716,1060.8,1058.7,0.6325885]
[1759425874378,0.83502189,1060.7,1058.8,0.6325885]
[1759425874680,0.99918716,1060.8,1058.8,0.6325885]
[1759425875083,0.99918716,1060.8,1058.9,0.6325885]
[1759425875084,0.83502189,1060.8,1058.9,0.6325885]
[1759425875277,0.83502189,1061.5,1059.5,0.6325885]
[1759425875478,0.16411649,1061.3,1059.5,0.6325885]
[1759425875978,0.16411649,1061.3,1059.7,0.6325885]
[1759425876583,0.16411649,1061.3,1059.6,0.6325885]
[1759425878381,0.99913838,1061.3,1059.6,0.6325885]
[1759425878585,0.83502189,1061.2,1059.6,0.6325885]
[1759425878784,0.99913838,1061.3,1059.6,0.6325885]
[1759425880287,0.83502189,1061.2,1059.6,0.6325885]
[1759425881087,0.99913838,1061.3,1059.6,0.6325885]
[1759425882386,0.16411649,1061.3,1059.5,0.6325885]
[1759425882589,0.16411649,1061.3,1059.4,0.6325885]
[1759425884991,0.16411649,1061.3,1059.5,0.6325885]
[1759425885294,0.99913838,1061.3,1059.6,0.6325885]
[1759425886493,0.16411649,1061.3,1059.6,0.6325885]
[1759425886690,0.99913838,1061.3,1059.6,0.6325885]
[1759425887394,0.16411649,1061.3,1059.6,0.6325885]
[1759425887592,0.99913838,1061.3,1059.6,0.6325885]
[1759425888294,0.99913838,1061.3,1059.5,0.6325885]
[1759425888696,0.83502189,1061.2,1059.5,0.6325885]
[1759425888894,0.83502189,1061.1,1059.1,0.6325885]
[1759425889396,0.83502189,1060.9,1059.2,0.6325885]
[1759425890391,0.83502189,1061.0,1059.2,0.6325885]
[1759425890696,0.83502189,1060.9,1059.2,0.6325885]
[1759425892694,0.83502189,1061.2,1059.1,0.6325885]
[1759425893695,0.83502189,1061.1,1059.1,0.6325885]
[1759425894596,0.83502189,1060.8,1059.1,0.6325885]
[1759425895497,0.83502189,1060.7,1059.1,0.6325885]
[1759425896098,0.83502189,1060.7,1059.1,0.6365885]
[1759425896603,0.83502189,1060.7,1059.2,1.77902833]
[1759425896899,0.83502189,1060.8,1059.2,1.77902833]
[1759425897102,0.83502189,1060.8,1059.2,2.41161683]
[1759425897301,0.83502189,1060.9,1059.2,2.41161683]
[1759425900503,0.83502189,1061.0,1059.3,0.6325885]
[1759425901406,0.83502189,1061.1,1059.4,0.6325885]
[1759425901810,0.83502189,1061.1,1059.3,0.84357369]
[1759425901811,0.83502189,1061.1,1059.5,0.6325885]
[1759425902610,0.83502189,1061.2,1059.5,0.6325885]
[1759425903311,0.83502189,1061.2,1059.4,0.6325885]
[1759425903513,0.83502189,1061.1,1059.2,2.41161683]
[1759425903808,0.83502189,1061.0,1059.2,2.41161683]
[1759425904411,0.83502189,1061.0,1059.2,1.77902833]
[1759425904614,0.83502189,1061.0,1059.2,2.41161683]
[1759425904814,0.83502189,1061.0,1059.2,1.77902833]
[1759425905109,0.83502189,1061.0,1059.2,2.41161683]
[1759425906011,0.83502189,1061.0,1059.3,0.6325885]
[1759425907816,0.83502189,1061.1,1059.3,0.6325885]
[1759425908412,0.83502189,1061.2,1059.3,0.6325885]
[1759425909016,0.83502189,1061.1,1059.3,0.6325885]
[1759425909516,0.99913838,1061.3,1059.4,0.6325885]
[1759425909715,0.16411649,1061.3,1059.4,0.6325885]
[1759425910015,0.16411649,1061.3,1059.5,0.6325885]
[1759425910514,0.99913838,1061.3,1059.5,0.6325885]
[1759425911317,0.83502189,1061.2,1059.5,0.6325885]
[1759425912019,0.16411649,1061.3,1059.5,0.6325885]
[1759425912020,0.99913838,1061.3,1059.5,0.6325885]
[1759425912219,0.99913838,1061.3,1059.6,0.6325885]
[1759425913420,0.16411649,1061.3,1059.6,0.6325885]
[1759425913720,0.83502189,1061.4,1059.6,0.6325885]
[1759425914319,0.83502189,1061.5,1059.7,0.6325885]
[1759425916327,0.99906566,1061.6,1059.7,0.6325885]
[1759425916924,0.99906566,1061.6,1059.8,0.6325885]
[1759425920528,0.83502189,1061.6,1059.8,0.6325885]
[1759425920728,0.83502189,1061.6,1059.9,0.6325885]
[1759425920926,0.83502189,1061.7,1059.9,0.6325885]
[1759425921927,0.99903551,1061.8,1060.0,0.6325885]
[1759425922728,0.83502189,1061.9,1060.0,0.6325885]
[1759425922933,0.83502189,1062.0,1060.1,0.6325885]
[1759425923128,0.99899455,1062.1,1060.1,0.6325885]
[1759425924729,0.16397266,1062.1,1060.1,0.6325885]
[1759425926932,0.99899455,1062.1,1060.1,0.6325885]
[1759425927234,0.16397266,1062.1,1060.1,0.6325885]
[1759425938343,0.16397266,1062.1,1060.0,0.6325885]
[1759425938842,0.16397266,1062.1,1059.8,0.84357369]
[1759425938843,0.16397266,1062.1,1060.1,0.6325885]
[1759425939142,0.16397266,1062.1,1060.0,0.6325885]
[1759425942945,0.16397266,1062.1,1059.8,0.6325885]
[1759425945648,0.16397266,1062.1,1059.9,0.6325885]
[1759425946850,0.16397266,1062.1,1059.8,0.6325885]
[1759425947752,0.16397266,1062.1,1059.7,0.6325885]
[1759425948053,0.16397266,1062.1,1059.8,0.6325885]
[1759425948248,0.16397266,1062.1,1059.7,0.6325885]
[1759425948452,0.16397266,1062.1,1059.8,0.6325885]
[1759425948654,0.99899455,1062.1,1059.8,0.6325885]
[1759425948852,0.99899455,1062.1,1059.7,0.6325885]
[1759425949052,0.99899455,1062.1,1059.6,0.6325885]
[1759425949253,0.83502189,1062.0,1059.7,0.6325885]
[1759425950451,0.83502189,1061.9,1059.7,0.6325885]
[1759425950854,0.83502189,1062.0,1059.7,0.6325885]
[1759425951251,0.83502189,1061.9,1059.6,0.6325885]
[1759425952251,0.83502189,1062.0,1059.5,0.6325885]
[1759425954660,0.83502189,1061.9,1059.5,0.6325885]
[1759425954959,0.83502189,1061.9,1059.4,0.6325885]
[1759425956258,1.42796565,1062.1,1059.2,2.62260202]
[1759425956259,0.83502189,1061.7,1059.5,0.6325885]
[1759425959462,0.83502189,1061.7,1059.6,0.6325885]
[1759425961763,0.83502189,1061.6,1059.6,0.6325885]
[1759425962960,0.83502189,1061.7,1059.7,0.6325885]
[1759425963162,0.83502189,1061.7,1059.8,0.6325885]
[1759425963761,0.83502189,1061.8,1059.8,0.6325885]
[1759425964261,0.83502189,1061.8,1059.9,0.6325885]
[1759425964961,0.83502189,1061.9,1060.0,0.6325885]
[1759425965165,0.83502189,1061.8,1060.0,0.6325885]
[1759425965365,0.83502189,1061.9,1060.1,0.6325885]
[1759425967460,0.83502189,1061.9,1060.2,0.6325885]
[1759425968366,0.83502189,1061.8,1060.2,0.6325885]
[1759425968567,0.83502189,1061.9,1060.3,0.6325885]
[1759425969668,0.83502189,1062.0,1060.3,0.6325885]
[1759425971465,0.83502189,1061.9,1060.3,0.6325885]
[1759425973367,0.83502189,1061.9,1060.1,0.84357369]
[1759425973368,0.83502189,1061.9,1060.4,0.6325885]
[1759425978276,0.83502189,1061.8,1060.3,0.6325885]
[1759425978976,0.83502189,1062.0,1060.2,0.6325885]
[1759425979280,0.83502189,1062.0,1060.3,0.6325885]
[1759425980077,0.99899455,1062.1,1060.3,0.6325885]
[1759425980276,0.99899455,1062.1,1060.4,0.6325885]
[1759425980679,0.99899455,1062.1,1060.3,0.6325885]
[1759425981680,0.83502189,1061.9,1060.4,0.6325885]
[1759425982783,0.83502189,1062.0,1060.4,0.6325885]
[1759425983887,0.83502189,1062.0,1060.3,0.6325885]
[1759425986391,0.83502189,1061.9,1060.3,0.6325885]
[1759425986588,0.83502189,1061.8,1060.2,0.6325885]
[1759425986891,0.83502189,1061.8,1060.3,0.6325885]
[1759425987091,0.83502189,1061.9,1060.3,0.6325885]
[1759425987387,0.83502189,1061.9,1060.4,0.6325885]
[1759425989392,0.83502189,1062.0,1060.5,0.6325885]
[1759425989692,0.83502189,1062.0,1060.4,0.6325885]
[1759425993094,0.99899455,1062.1,1060.4,0.6325885]
[1759425993895,0.83502189,1062.0,1060.4,0.6325885]
[1759425994096,0.99899455,1062.1,1060.4,0.6325885]
[1759425994392,0.83502189,1062.0,1060.4,0.6325885]
[1759425994692,0.83502189,1062.0,1060.3,0.6325885]
[1759425994996,0.83502189,1061.9,1060.3,0.6325885]
[1759425995397,0.83502189,1061.8,1060.3,0.6325885]
[1759425997197,0.83502189,1061.9,1060.3,0.6325885]
[1759425997696,0.83502189,1061.8,1060.3,0.6325885]
[1759425999097,0.83502189,1061.8,1060.4,0.6325885]
[1759425999698,0.83502189,1061.8,1060.3,0.6325885]
[1759426001503,0.83502189,1061.8,1060.3,0.62696592]
[1759426001706,0.83502189,1061.8,1060.4,2.28272565]
[1759426002406,0.83502189,1061.9,1060.4,2.28272565]
[1759426004009,0.83502189,1062.0,1060.5,0.62696592]
[1759426004710,0.99899455,1062.1,1060.4,2.28272565]
[1759426007810,0.83502189,1061.9,1060.4,2.28272565]
[1759426008306,0.83502189,1061.8,1060.4,1.65575973]
[1759426012412,0.83502189,1061.9,1060.4,2.28272565]
[1759426013212,0.83502189,1061.8,1060.4,2.28272565]
[1759426014715,0.83502189,1061.9,1060.5,0.62696592]
[1759426016315,0.83502189,1061.8,1060.5,0.62696592]
[1759426017115,0.83502189,1061.9,1060.5,0.62696592]
[1759426017313,0.83502189,1061.8,1060.5,0.62696592]
[1759426017612,0.83502189,1061.9,1060.5,0.62696592]
[1759426018412,0.83502189,1061.9,1060.6,0.62696592]
[1759426022317,0.83502189,1061.9,1060.7,0.62696592]
[1759426022516,0.83502189,1061.8,1060.8,0.62696592]
[1759426025920,0.83502189,1062.0,1060.7,0.62696592]
[1759426028422,0.83502189,1062.1,1060.7,0.62696592]
[1759426029424,0.83502189,1062.1,1060.6,0.62696592]
[1759426030420,0.83502189,1062.0,1060.6,0.62696592]
[1759426031925,0.83502189,1062.1,1060.5,0.62696592]
[1759426032124,0.83502189,1061.9,1060.4,1.65575973]
[1759426033226,0.83502189,1061.7,1060.4,1.65575973]
[1759426033523,0.83502189,1061.6,1060.4,1.65575973]
[1759426035529,1.26399299,1061.8,1060.4,1.65575973]
[1759426035530,0.83502189,1061.7,1060.4,1.65575973]
[1759426036026,0.83502189,1061.7,1060.4,2.28272565]
[1759426037127,0.83502189,1061.6,1060.5,0.62696592]
[1759426038439,0.83502189,1061.7,1060.5,0.62696592]
[1759426040344,0.83502189,1061.8,1060.5,0.62696592]
[1759426042144,0.83502189,1061.7,1060.5,0.62696592]
[1759426042343,0.83502189,1061.8,1060.5,0.62696592]
[1759426042546,0.83502189,1061.9,1060.5,0.62696592]
[1759426046347,0.83502189,1061.7,1060.5,0.62696592]
[1759426046551,0.83502189,1061.6,1060.4,2.28272565]
[1759426049649,0.83502189,1061.7,1060.4,2.28272565]
[1759426054953,0.83502189,1061.7,1060.4,1.65575973]
[1759426056954,0.83502189,1061.7,1060.4,2.28272565]
[1759426057656,0.83502189,1061.8,1060.4,1.65575973]
[1759426062061,0.83502189,1061.9,1060.4,1.65575973]
[1759426062363,0.83502189,1061.8,1060.4,1.65575973]
[1759426065962,0.83502189,1061.6,1060.4,1.65575973]
[1759426068164,0.83502189,1061.4,1060.4,1.65575973]
[1759426068365,0.83502189,1061.2,1060.4,1.65575973]
[1759426069767,0.83502189,1061.3,1060.4,1.65575973]
[1759426073970,0.83502189,1061.4,1060.4,1.65575973]
[1759426077371,0.83502189,1061.5,1060.4,1.65575973]
[1759426077574,0.83502189,1061.4,1060.4,1.65575973]
[1759426080573,0.83502189,1061.3,1060.4,1.65575973]
[1759426081977,0.83502189,1061.4,1060.4,1.65575973]
[1759426082178,0.83502189,1061.5,1060.4,1.65575973]
[1759426082383,0.83502189,1061.6,1060.4,1.65575973]
[1759426085180,0.83502189,1061.7,1060.4,1.65575973]
[1759426086580,0.83502189,1061.6,1060.4,1.65575973]
[1759426086782,0.83502189,1061.7,1060.4,1.65575973]
[1759426089486,0.83502189,1061.6,1060.4,1.65575973]
[1759426089687,0.83502189,1061.7,1060.4,1.65575973]
[1759426090388,0.83502189,1061.6,1060.4,1.65575973]
[1759426092483,0.83502189,1061.7,1060.4,1.65575973]
[1759426093788,0.83502189,1061.6,1060.4,1.65575973]
[1759426096287,0.83502189,1061.4,1060.4,1.65575973]
[1759426097790,0.83502189,1061.3,1060.4,1.65575973]
[1759426099192,0.83502189,1061.4,1060.4,1.65575973]
[1759426101195,0.83502189,1061.5,1060.4,1.65575973]
[1759426101391,0.83502189,1061.4,1060.4,1.65575973]
[1759426101892,0.83502189,1061.5,1060.4,1.65575973]
[1759426102096,0.83502189,1061.4,1060.4,1.65575973]
[1759426102295,0.83502189,1061.5,1060.4,1.65575973]
[1759426102592,0.83502189,1061.4,1060.4,1.65575973]
[1759426102996,0.83502189,1061.4,1060.5,1.59857792]
[1759426103195,0.83502189,1061.4,1060.5,1.60257792]
[1759426104697,1.26399299,1061.7,1060.5,1.60257792]